fUST/lending_fUST_20240904
["ID","MTS","AMOUNT","RATE_DAILY","PERIOD"]
[337116064,1725438654255,-500.0,0.00027397,2]
[337116065,1725438654264,-500.0,0.00027397,2]
[337116066,1725438654273,-500.0,0.00027397,2]
[337116067,1725438654282,-500.0,0.00027397,2]
[337116068,1725438654292,-500.0,0.00027397,2]
[337116069,1725438654301,-151.0,0.00027397,7]
[337116070,1725438654311,-151.0,0.00027397,7]
[337116071,1725438654320,-151.0,0.00027397,7]
[337116072,1725438654329,-500.0,0.00027397,2]
[337116073,1725438654340,-500.0,0.00027397,2]
[337116074,1725438654349,-500.0,0.00027397,2]
[337116075,1725438654359,-223.86986782,0.00027397,2]
[337116076,1725438654368,-500.0,0.00027397,2]
[337116077,1725438654377,-151.0,0.00027397,7]
[337116078,1725438654386,-151.0,0.00027397,7]
[337116079,1725438654396,-151.0,0.00027397,7]
[337116080,1725438654407,-500.0,0.00027397,2]
[337116081,1725438654417,-151.0,0.00027397,7]
[337116082,1725438654426,-286.412541,0.00027397,7]
[337116083,1725438654435,-500.0,0.00027397,2]
[337116084,1725438654445,-500.0,0.00027397,2]
[337116085,1725438654454,-225.31405573,0.00027397,2]
[337116086,1725438654464,-151.0,0.00027397,7]
[337116087,1725438654473,-178.911545,0.00027397,7]
[337116088,1725438654483,-500.0,0.00027397,2]
[337116089,1725438654492,-151.0,0.00027397,7]
[337116090,1725438654502,-151.0,0.00027397,7]
[337116091,1725438654512,-151.0,0.00027397,7]
[337116092,1725438654521,-500.0,0.00027397,2]
[337116093,1725438654530,-213.839469,0.00027397,7]
[337116094,1725438654540,-500.0,0.00027397,2]
[337116095,1725438654550,-500.0,0.00027397,2]
[337116096,1725438654559,-154.702668,0.00027397,7]
[337116097,1725438654569,-500.0,0.00027397,2]
[337116098,1725438654578,-500.0,0.00027397,2]
[337116099,1725438654587,-500.0,0.00027397,2]
[337116100,1725438654597,-223.09586328,0.00027397,2]
[337116101,1725438654606,-500.0,0.00027397,2]
[337116102,1725438654616,-500.0,0.00027397,2]
[337116103,1725438654625,-500.0,0.00027397,2]
[337116104,1725438654634,-151.0,0.00027397,7]
[337116105,1725438654644,-151.0,0.00027397,7]
[337116106,1725438654654,-151.0,0.00027397,7]
[337116107,1725438654663,-500.0,0.00027397,2]
[337116108,1725438654672,-500.0,0.00027397,2]
[337116109,1725438654681,-151.0,0.00027397,7]
[337116110,1725438654691,-151.0,0.00027397,7]
[337116111,1725438654700,-151.0,0.00027397,7]
[337116112,1725438654710,-500.0,0.00027397,2]
[337116113,1725438654719,-500.0,0.00027397,2]
[337116114,1725438654728,-500.0,0.00027397,2]
[337116115,1725438654738,-151.0,0.00027397,7]
[337116116,1725438654747,-151.0,0.00027397,7]
[337116117,1725438654756,-151.0,0.00027397,7]
[337116118,1725438654765,-500.0,0.00027397,2]
[337116119,1725438654775,-151.0,0.00027397,7]
[337116120,1725438654784,-151.0,0.00027397,7]
[337116121,1725438654793,-157.256413,0.00027397,7]
[337116122,1725438654803,-500.0,0.00027397,2]
[337116123,1725438654812,-500.0,0.00027397,2]
[337116124,1725438654821,-500.0,0.00027397,2]
[337116125,1725438654830,-500.0,0.00027397,2]
[337116126,1725438654840,-500.0,0.00027397,2]
[337116127,1725438654849,-636.14,0.00027397,2]
[337116128,1725438654858,-500.0,0.00027397,2]
[337116129,1725438654867,-151.0,0.00027397,7]
[337116130,1725438654876,-500.0,0.00027397,2]
[337116131,1725438654889,-151.0,0.00027397,7]
[337116132,1725438654900,-151.0,0.00027397,7]
[337116133,1725438654910,-500.0,0.00027397,2]
[337116134,1725438654919,-500.0,0.00027397,2]
[337116135,1725438654929,-500.0,0.00027397,2]
[337116136,1725438654938,-585.13404961,0.00027397,2]
[337116137,1725438654947,-500.0,0.00027397,2]
[337116138,1725438654959,-1668.717399,0.00027397,7]
[337116139,1725438654969,-1668.717399,0.00027397,7]
[337116140,1725438654978,-1668.717399,0.00027397,7]
[337116141,1725438654989,-500.0,0.00027397,2]
[337116142,1725438655000,-500.0,0.00027397,2]
[337116143,1725438655010,-1668.717399,0.00027397,7]
[337116144,1725438655023,-500.0,0.00027397,2]
[337116145,1725438655033,-1668.717399,0.00027397,7]
[337116146,1725438655044,-500.0,0.00027397,2]
[337116147,1725438655053,-1668.717399,0.00027397,7]
[337116148,1725438655064,-500.0,0.00027397,2]
[337116149,1725438655075,-175.916192,0.00027397,7]
[337116150,1725438655086,-175.916192,0.00027397,7]
[337116151,1725438655096,-175.916192,0.00027397,7]
[337116152,1725438655107,-525.34820175,0.00027397,2]
[337116153,1725438655117,-502.19818194,0.00027397,2]
[337116154,1725438655127,-175.916192,0.00027397,7]
[337116155,1725438655139,-175.916192,0.00027397,7]
[337116156,1725438655151,-175.916192,0.00027397,7]
[337116157,1725438655161,-236.03780758,0.00027397,2]
[337116158,1725438655171,-151.0,0.00027397,7]
[337116159,1725438655182,-151.0,0.00027397,7]
[337116160,1725438655191,-151.0,0.00027397,7]
[337116161,1725438655201,-500.0,0.00027397,2]
[337116162,1725438655212,-500.0,0.00027397,2]
[337116163,1725438655222,-505.84427358,0.00027397,2]
[337116164,1725438655232,-500.0,0.00027397,2]
[337116165,1725438655243,-500.0,0.00027397,30]
[337116166,1725438655253,-151.0,0.00027397,7]
[337116167,1725438655264,-151.0,0.00027397,7]
[337116168,1725438655274,-151.0,0.00027397,7]
[337116169,1725438655284,-500.0,0.00027397,2]
[337116170,1725438655295,-500.0,0.00027397,2]
[337116171,1725438655307,-451.936003,0.00027397,7]
[337116172,1725438655318,-451.936003,0.00027397,7]
[337116173,1725438655327,-451.936003,0.00027397,7]
[337116174,1725438655337,-500.0,0.00027397,2]
[337116175,1725438655347,-510.41619276,0.00027397,2]
[337116176,1725438655357,-479.19748086,0.00027397,2]
[337116177,1725438655366,-500.0,0.00027397,2]
[337116178,1725438655376,-451.936003,0.00027397,7]
[337116179,1725438655385,-451.936003,0.00027397,7]
[337116180,1725438655395,-451.936003,0.00027397,7]
[337116181,1725438655415,-504.24920898,0.00027397,2]
[337116182,1725438655425,-500.0,0.00027397,2]
[337116183,1725438655436,-224.25591922,0.00027397,2]
[337116184,1725438655446,-153.382195,0.00027397,7]
[337116185,1725438655457,-500.0,0.00027397,2]
[337116186,1725438655467,-500.0,0.00027397,2]
[337116187,1725438655477,-500.0,0.00027397,2]
[337116188,1725438655488,-500.0,0.00027397,2]
[337116189,1725438655498,-500.0,0.00027397,2]
[337116190,1725438655509,-500.0,0.00027397,2]
[337116191,1725438655520,-500.0,0.00027397,2]
[337116192,1725438655530,-500.0,0.00027397,2]
[337116193,1725438655540,-151.0,0.00027397,7]
[337116194,1725438655551,-151.0,0.00027397,7]
[337116195,1725438655563,-151.0,0.00027397,7]
[337116196,1725438655574,-153.47168,0.00027397,7]
[337116197,1725438655586,-500.0,0.00027397,2]
[337116198,1725438655596,-151.0,0.00027397,7]
[337116199,1725438655606,-151.0,0.00027397,7]
[337116200,1725438655617,-500.0,0.00027397,2]
[337116201,1725438655627,-373.89323076,0.00027397,2]
[337116202,1725438655638,-500.0,0.00027397,2]
[337116203,1725438655649,-500.0,0.00027397,2]
[337116204,1725438655665,-422.84008463,0.00027397,2]
[337116205,1725438655676,-504.56187486,0.00027397,2]
[337116206,1725438655687,-502.57978369,0.00027397,2]
[337116207,1725438655698,-500.0,0.00027397,2]
[337116208,1725438655708,-500.0,0.00027397,2]
[337116209,1725438655718,-500.0,0.00027397,2]
[337116210,1725438655727,-500.0,0.00027397,2]
[337116211,1725438655736,-151.0,0.00027397,2]
[337116212,1725438655746,-151.0,0.00027397,2]
[337116213,1725438655755,-500.0,0.00027397,2]
[337116214,1725438655764,-392.50061677,0.00027397,2]
[337116215,1725438655774,-500.0,0.00027397,2]
[337116216,1725438655784,-500.0,0.00027397,2]
[337116217,1725438655794,-500.0,0.00027397,2]
[337116218,1725438655804,-500.0,0.00027397,2]
[337116219,1725438655814,-500.0,0.00027397,2]
[337116220,1725438655824,-151.0,0.00027397,7]
[337116221,1725438655833,-500.0,0.00027397,2]
[337116222,1725438655842,-151.0,0.00027397,7]
[337116223,1725438655852,-500.0,0.00027397,2]
[337116224,1725438655861,-500.0,0.00027397,2]
[337116225,1725438655870,-151.0,0.00027397,7]
[337116226,1725438655879,-151.0,0.00027397,7]
[337116227,1725438655891,-500.0,0.00027397,2]
[337116228,1725438655905,-500.0,0.00027397,2]
[337116229,1725438655914,-151.0,0.00027397,7]
[337116230,1725438655923,-151.0,0.00027397,7]
[337116231,1725438655932,-500.0,0.00027397,2]
[337116232,1725438655942,-500.0,0.00027397,2]
[337116233,1725438655951,-500.0,0.00027397,2]
[337116234,1725438655960,-500.0,0.00027397,2]
[337116235,1725438655971,-500.0,0.00027397,2]
[337116236,1725438655981,-510.13470113,0.00027397,2]
[337116237,1725438655990,-500.0,0.00027397,2]
[337116238,1725438655999,-500.0,0.00027397,2]
[337116239,1725438656009,-166.869147,0.00027397,2]
[337116240,1725438656019,-151.0,0.00027397,7]
[337116241,1725438656028,-151.0,0.00027397,7]
[337116242,1725438656039,-186.065363,0.00027397,7]
[337116243,1725438656048,-36022.36708505,0.000274,14]
[337116244,1725438656065,-29967.61291495,0.000274,14]
[337116245,1725438656074,-155.39,0.000274,14]
[337116246,1725438656083,-849.33,0.000274,14]
[337116247,1725438656093,-1250.49713271,0.000274,14]
[337116253,1725439185088,200.0,0.00020321,120]
[337116267,1725439550142,-200.0,0.00020321,2]
[337116268,1725439550171,-359.103042,0.00024658,2]
[337116269,1725439550196,-425.05319733,0.0002492,2]
[337116270,1725439550218,-188.3831412,0.00025146,2]
[337116271,1725439550241,-300.0,0.00025693,2]
[337116272,1725439550265,-5.52327585,0.00025694,2]
[337116273,1725439626115,-300.0,0.00025693,2]
[337116274,1725439626146,-3394.28311246,0.00025694,2]
[337116275,1725439627157,-450.0,0.00025694,2]
[337116276,1725439640311,-5908.61314725,0.00025694,2]
[337116277,1725439642252,-177.28532855,0.00025694,2]
[337116278,1725439651127,-232.7551173,0.00025694,2]
[337116279,1725439652270,-3277.05559738,0.00025694,2]
[337116299,1725439831818,-171.0,0.00025769,2]
[337116300,1725439831828,-2292.43579377,0.0002577,2]
[337116315,1725439838036,-15497.08954755,0.0002577,2]
[337116317,1725439838048,-7110.47465868,0.0002577,2]
[337116319,1725439838058,-9383.8133704,0.00025811,63]
[337116321,1725439838067,-307.6285829,0.000269,2]
[337116323,1725439838076,-1000.0,0.00027,27]
[337116325,1725439838086,-159.0,0.00027,2]
[337116327,1725439838094,-227.24054371,0.0002727,2]
[337116329,1725439838104,-1000.0,0.0002727,2]
[337116331,1725439838113,-585.68993784,0.00027297,2]
[337116333,1725439838123,-1300.0,0.000273,120]
[337116336,1725439838133,-227.2405437,0.00027345,2]
[337116338,1725439838145,-312.44,0.00027351,3]
[337116340,1725439838154,-260.37,0.00027351,3]
[337116342,1725439838165,-216.97,0.00027351,3]
[337116344,1725439838175,-384.34250884,0.00027359,2]
[337116346,1725439838186,-208.01223997,0.00027359,2]
[337116348,1725439838196,-500.0,0.00027359,2]
[337116350,1725439838207,-250.0,0.00027359,2]
[337116352,1725439838216,-131616.92657088,0.0002736,3]
[337116357,1725439838250,-656.51257192,0.0002736,3]
[337116548,1725439840043,-4510.54247595,0.0002736,3]
[337116550,1725439840056,-359.50100004,0.0002736,3]
[337116552,1725439840067,-2891.69,0.0002736,3]
[337116557,1725439840100,-371.29959828,0.0002736,3]
[337116843,1725439843156,-180.81,0.00027351,3]
[337116846,1725439843165,-5214.07374152,0.0002736,3]
[337117146,1725439846165,-364.1172886,0.0002736,3]
[337117803,1725440742166,-235.1271126,0.000245,16]
[337117804,1725440747155,-1041.31030391,0.000245,16]
[337117805,1725440747179,-372.16759,0.00024658,2]
[337117806,1725440747201,-19.49787913,0.00025498,2]
[337117807,1725440832418,-188.47642435,0.00025498,2]
[337117809,1725440839860,-574.84903822,0.00025498,2]
[337117810,1725440839883,-180.938385,0.0002589,2]
[337117811,1725440839906,-1773.41530496,0.00026026,2]
[337117812,1725440852167,-263.19345058,0.00026026,2]
[337117836,1725441032101,-4541.29687361,0.00026172,2]
[337117849,1725441038224,-20358.70312639,0.00026172,2]
[337117850,1725441038235,-380.3698549,0.00026658,2]
[337117851,1725441038247,-1000.0,0.00027256,2]
[337117852,1725441038256,-527.12094411,0.00027297,2]
[337117853,1725441038266,-170.43040779,0.00027297,2]
[337117854,1725441038277,-170.43040777,0.00027298,2]
[337117855,1725441038287,-170.43040777,0.00027299,2]
[337117856,1725441038298,-170.43040777,0.000273,2]
[337117857,1725441038308,-269.03975619,0.00027386,2]
[337117858,1725441038320,-798.99132153,0.00027387,15]
[337117859,1725441038330,-1334.49026689,0.00027387,15]
[337117860,1725441038341,-213957.89259731,0.00027387,3]
[337117869,1725441040304,-99638.45302769,0.00027387,3]
[337117870,1725441040314,-447926.32637014,0.00027387,2]
[337117871,1725441040360,-382.07625022,0.00027387,2]
[337117881,1725441045865,181.1337282,0.00024646,2]
[337117918,1725441953143,-174.54040806,0.00024388,2]
[337117919,1725441958283,-1934.17207475,0.00024388,2]
[337117920,1725442032128,-300.0,0.00024387,2]
[337117921,1725442032152,-4709.475016,0.00024388,2]
[337117922,1725442036148,-255.46385804,0.00024388,2]
[337117924,1725442047289,-154.74764244,0.00024387,2]
[337117927,1725442118886,162.67876467,0.0002,2]
[337117928,1725442146115,-5905.39421201,0.00022,30]
[337117929,1725442152107,-627.124951,0.00023,2]
[337117930,1725442152343,-7024.0,0.000243,2]
[337117931,1725442152363,-166.66666668,0.00024375,2]
[337117932,1725442152386,-3845.25235756,0.00024387,2]
[337117933,1725442152410,-5100.26113121,0.00024388,2]
[337117938,1725442161112,-12726.08751194,0.00024388,2]
[337117939,1725442161138,-244.51099658,0.00024475,2]
[337117940,1725442168123,-22.84184042,0.00024475,2]
[337117941,1725442170122,-353.55921,0.00024658,2]
[337117942,1725442171468,180.938385,0.00024646,2]
[337117988,1725442232271,-2502.6943855,0.0002492,2]
[337117990,1725442232282,-167.808552,0.00025107,2]
[337117992,1725442232295,-500.0,0.000264,120]
[337117994,1725442232305,-500.0,0.000264,120]
[337117996,1725442232315,-500.0,0.000264,120]
[337117998,1725442232324,-500.0,0.000264,120]
[337118000,1725442232334,-500.0,0.000264,120]
[337118002,1725442232344,-240.83325726,0.000264,120]
[337118004,1725442232359,-259.16674274,0.000264,120]
[337118006,1725442232369,-500.0,0.000264,120]
[337118009,1725442232379,-500.0,0.000264,120]
[337118011,1725442232389,-500.0,0.000264,120]
[337118013,1725442232399,-500.0,0.000264,120]
[337118015,1725442232410,-500.0,0.000264,120]
[337118017,1725442232420,-500.0,0.000264,120]
[337118019,1725442232431,-34.8548176,0.000264,120]
[337118028,1725442238343,-465.1451824,0.000264,120]
[337118029,1725442238353,-500.0,0.000264,120]
[337118030,1725442238363,-500.0,0.000264,120]
[337118031,1725442238373,-500.0,0.000264,120]
[337118032,1725442238384,-500.0,0.000264,120]
[337118033,1725442238394,-500.0,0.000264,120]
[337118034,1725442238404,-500.0,0.000264,120]
[337118035,1725442238413,-500.0,0.000264,120]
[337118036,1725442238423,-500.0,0.000264,120]
[337118037,1725442238433,-500.0,0.000264,120]
[337118038,1725442238443,-500.0,0.000264,7]
[337118039,1725442238453,-500.0,0.000264,7]
[337118040,1725442238462,-500.0,0.000264,7]
[337118041,1725442238473,-500.0,0.000264,7]
[337118042,1725442238483,-500.0,0.000264,7]
[337118043,1725442238492,-500.0,0.000264,7]
[337118044,1725442238503,-510.7,0.000264,7]
[337118045,1725442238513,-500.0,0.000264,120]
[337118046,1725442238523,-500.0,0.000264,120]
[337118047,1725442238533,-500.0,0.000264,120]
[337118048,1725442238543,-500.0,0.000264,120]
[337118049,1725442238553,-500.0,0.000264,120]
[337118050,1725442238564,-500.0,0.000264,120]
[337118051,1725442238574,-500.0,0.000264,120]
[337118052,1725442238586,-500.0,0.000264,120]
[337118053,1725442238595,-500.0,0.000264,120]
[337118054,1725442238606,-500.0,0.000264,120]
[337118055,1725442238617,-500.0,0.000264,120]
[337118056,1725442238628,-500.0,0.000264,120]
[337118057,1725442238640,-500.0,0.000264,120]
[337118058,1725442238651,-500.0,0.000264,120]
[337118059,1725442238662,-500.0,0.000264,120]
[337118060,1725442238672,-500.0,0.000264,120]
[337118061,1725442238682,-612.03,0.000264,120]
[337118062,1725442238693,-500.0,0.000264,7]
[337118063,1725442238703,-500.0,0.000264,7]
[337118064,1725442238712,-500.0,0.000264,7]
[337118065,1725442238722,-500.0,0.000264,120]
[337118066,1725442238735,-2841.93239279,0.000264,2]
[337118067,1725442238744,-2375.62345776,0.00026821,2]
[337118068,1725442238753,-189.58226665,0.00026897,2]
[337118069,1725442238763,-7537.5897201,0.00027,2]
[337118070,1725442238773,-560.28673538,0.00027,120]
[337118071,1725442238783,-1000.0,0.00027256,2]
[337118072,1725442238793,-178.67,0.00027336,3]
[337118073,1725442238804,-816.88,0.00027337,3]
[337118074,1725442238814,-295.29427862,0.00027345,2]
[337118075,1725442238824,-500.0,0.00027345,2]
[337118076,1725442238834,-165.81158835,0.00027345,2]
[337118077,1725442238844,-455.0798148,0.00027345,2]
[337118078,1725442238854,-457.0287044,0.00027345,2]
[337118079,1725442238864,-500.0,0.00027345,2]
[337118080,1725442238874,-500.0,0.00027345,2]
[337118081,1725442238885,-500.0,0.00027345,2]
[337118082,1725442238897,-237.28092891,0.00027345,2]
[337118083,1725442238907,-500.0,0.00027345,2]
[337118084,1725442238916,-500.0,0.00027345,2]
[337118085,1725442238926,-296.17033107,0.00027345,2]
[337118086,1725442238936,-500.0,0.00027345,2]
[337118087,1725442238947,-255.13003678,0.00027345,2]
[337118088,1725442238957,-23288.58932406,0.00027346,15]
[337118089,1725442238967,-2668.98053378,0.00027346,15]
[337118090,1725442238977,-365223.795036,0.00027346,3]
[337118091,1725442238986,-680132.22158799,0.00027346,2]
[337118092,1725442239216,-96554.14075301,0.00027346,2]
[337118093,1725442239226,-150.01,0.00027396,2]
[337118094,1725442239238,-500.0,0.00027397,2]
[337118095,1725442239248,-419.1288234,0.00027397,2]
[337118096,1725442239258,-500.0,0.00027397,2]
[337118097,1725442239268,-500.0,0.00027397,2]
[337118098,1725442239278,-512.17408081,0.00027397,2]
[337118099,1725442239288,-1153.59,0.00027397,2]
[337118100,1725442239298,-500.0,0.00027397,2]
[337118101,1725442239308,-500.0,0.00027397,2]
[337118102,1725442239318,-500.0,0.00027397,2]
[337118103,1725442239328,-500.0,0.00027397,2]
[337118104,1725442239339,-501.06417889,0.00027397,2]
[337118105,1725442239349,-506.34,0.00027397,2]
[337118106,1725442239359,-500.0,0.00027397,2]
[337118107,1725442239369,-500.0,0.00027397,2]
[337118108,1725442239379,-500.0,0.00027397,2]
[337118109,1725442239389,-500.0,0.00027397,2]
[337118110,1725442239398,-293.26486992,0.00027397,2]
[337118111,1725442239408,-500.0,0.00027397,2]
[337118112,1725442239418,-500.0,0.00027397,2]
[337118113,1725442239429,-500.0,0.00027397,2]
[337118114,1725442239440,-500.0,0.00027397,2]
[337118115,1725442239452,-500.0,0.00027397,2]
[337118116,1725442239461,-500.0,0.00027397,2]
[337118117,1725442239472,-469.04127875,0.00027397,2]
[337118118,1725442239482,-172.21590805,0.00027397,2]
[337118119,1725442239492,-500.0,0.00027397,2]
[337118120,1725442239502,-500.0,0.00027397,2]
[337118121,1725442239512,-500.0,0.00027397,2]
[337118122,1725442239522,-500.0,0.00027397,2]
[337118123,1725442239532,-500.0,0.00027397,2]
[337118124,1725442239543,-500.0,0.00027397,2]
[337118125,1725442239552,-500.0,0.00027397,2]
[337118126,1725442239561,-500.0,0.00027397,2]
[337118127,1725442239570,-356.89844704,0.00027397,2]
[337118128,1725442239581,-500.0,0.00027397,2]
[337118129,1725442239592,-500.0,0.00027397,2]
[337118130,1725442239603,-500.0,0.00027397,2]
[337118131,1725442239614,-500.0,0.00027397,2]
[337118132,1725442239625,-502.91233412,0.00027397,2]
[337118133,1725442239636,-500.0,0.00027397,2]
[337118134,1725442239647,-500.0,0.00027397,2]
[337118135,1725442239657,-500.0,0.00027397,2]
[337118136,1725442239667,-1711.85,0.00027397,2]
[337118137,1725442239679,-500.0,0.00027397,2]
[337118138,1725442239689,-500.0,0.00027397,2]
[337118139,1725442239699,-501.58683325,0.00027397,2]
[337118140,1725442239709,-500.0,0.00027397,2]
[337118141,1725442239718,-500.0,0.00027397,2]
[337118142,1725442239729,-500.0,0.00027397,2]
[337118143,1725442239740,-500.0,0.00027397,2]
[337118144,1725442239750,-500.0,0.00027397,2]
[337118145,1725442239761,-500.0,0.00027397,2]
[337118146,1725442239772,-500.0,0.00027397,2]
[337118147,1725442239782,-500.0,0.00027397,2]
[337118148,1725442239794,-500.0,0.00027397,2]
[337118149,1725442239804,-516.84,0.00027397,2]
[337118150,1725442239815,-502.42464154,0.00027397,2]
[337118152,1725442239825,-500.0,0.00027397,2]
[337118154,1725442239834,-500.0,0.00027397,2]
[337118156,1725442239843,-500.0,0.00027397,2]
[337118158,1725442239852,-500.0,0.00027397,2]
[337118160,1725442239862,-501.56480187,0.00027397,2]
[337118163,1725442239871,-500.0,0.00027397,2]
[337118166,1725442239880,-925.42,0.00027397,2]
[337118168,1725442239889,-500.93216298,0.00027397,2]
[337118170,1725442239898,-500.0,0.00027397,2]
[337118172,1725442239909,-500.0,0.00027397,2]
[337118174,1725442239919,-500.0,0.00027397,2]
[337118175,1725442239929,-500.0,0.00027397,2]
[337118178,1725442239940,-500.0,0.00027397,2]
[337118179,1725442239950,-500.0,0.00027397,2]
[337118182,1725442239959,-500.73821975,0.00027397,2]
[337118183,1725442239969,-500.0,0.00027397,2]
[337118186,1725442239979,-500.0,0.00027397,2]
[337118187,1725442239988,-500.0,0.00027397,2]
[337118189,1725442239997,-501.5014267,0.00027397,2]
[337118191,1725442240008,-503.33776272,0.00027397,2]
[337118193,1725442240018,-513.55420484,0.00027397,2]
[337118195,1725442240028,-500.0,0.00027397,2]
[337118196,1725442240038,-500.0,0.00027397,2]
[337118197,1725442240048,-500.0,0.00027397,2]
[337118198,1725442240058,-500.0,0.00027397,2]
[337118199,1725442240073,-500.0,0.00027397,2]
[337118200,1725442240082,-502.70207197,0.00027397,2]
[337118201,1725442240092,-3685.5,0.00027397,2]
[337118202,1725442240102,-500.0,0.00027397,2]
[337118203,1725442240114,-500.0,0.00027397,2]
[337118204,1725442240125,-500.0,0.00027397,2]
[337118205,1725442240135,-500.0,0.00027397,2]
[337118206,1725442240148,-500.0,0.00027397,2]
[337118207,1725442240158,-500.0,0.00027397,2]
[337118208,1725442240168,-500.0,0.00027397,2]
[337118209,1725442240178,-740.56,0.00027397,2]
[337118210,1725442240188,-500.0,0.00027397,2]
[337118211,1725442240197,-302.93369803,0.00027397,2]
[337118212,1725442240206,-500.0,0.00027397,2]
[337118213,1725442240215,-437.11598776,0.00027397,2]
[337118214,1725442240225,-501.6328503,0.00027397,2]
[337118215,1725442240235,-504.20759744,0.00027397,2]
[337118216,1725442240245,-500.0,0.00027397,2]
[337118217,1725442240254,-500.0,0.00027397,2]
[337118218,1725442240264,-500.0,0.00027397,2]
[337118219,1725442240273,-500.0,0.00027397,2]
[337118220,1725442240284,-500.0,0.00027397,2]
[337118221,1725442240293,-500.0,0.00027397,2]
[337118222,1725442240303,-500.0,0.00027397,2]
[337118223,1725442240312,-500.0,0.00027397,2]
[337118224,1725442240321,-500.0,0.00027397,2]
[337118225,1725442240331,-502.97807996,0.00027397,2]
[337118226,1725442240340,-500.0,0.00027397,2]
[337118227,1725442240350,-500.0,0.00027397,2]
[337118228,1725442240359,-500.0,0.00027397,2]
[337118229,1725442240368,-500.0,0.00027397,2]
[337118230,1725442240377,-500.0,0.00027397,2]
[337118231,1725442240386,-461.40907727,0.00027397,2]
[337118232,1725442240395,-500.0,0.00027397,2]
[337118233,1725442240404,-500.0,0.00027397,2]
[337118234,1725442240413,-500.0,0.00027397,2]
[337118235,1725442240422,-500.0,0.00027397,2]
[337118236,1725442240432,-500.0,0.00027397,2]
[337118237,1725442240442,-500.0,0.00027397,2]
[337118238,1725442240453,-500.0,0.00027397,2]
[337118239,1725442240472,-500.0,0.00027397,2]
[337118240,1725442240484,-340.83093205,0.00027397,2]
[337118241,1725442240495,-500.0,0.00027397,2]
[337118242,1725442240504,-500.0,0.00027397,2]
[337118243,1725442240515,-500.0,0.00027397,2]
[337118244,1725442240527,-500.0,0.00027397,2]
[337118245,1725442240537,-500.0,0.00027397,2]
[337118246,1725442240551,-503.60848147,0.00027397,2]
[337118247,1725442240562,-500.0,0.00027397,2]
[337118248,1725442240574,-500.0,0.00027397,2]
[337118249,1725442240585,-500.0,0.00027397,2]
[337118250,1725442240596,-503.88841009,0.00027397,2]
[337118251,1725442240606,-500.0,0.00027397,2]
[337118252,1725442240618,-500.0,0.00027397,2]
[337118253,1725442240629,-500.0,0.00027397,2]
[337118254,1725442240641,-500.0,0.00027397,2]
[337118255,1725442240650,-500.0,0.00027397,2]
[337118256,1725442240661,-500.0,0.00027397,2]
[337118257,1725442240670,-500.0,0.00027397,2]
[337118258,1725442240680,-500.0,0.00027397,2]
[337118259,1725442240690,-500.0,0.00027397,2]
[337118260,1725442240701,-500.0,0.00027397,2]
[337118261,1725442240711,-503.76702713,0.00027397,2]
[337118262,1725442240720,-557.98482805,0.00027397,2]
[337118263,1725442240730,-500.0,0.00027397,2]